[Event "Chessable Masters - Torneo preliminare"]
[White "Tregubov, Pavel V."]
[Black "Sjugirov, Sanan"]
[WhiteFideId "4115341"]
[BlackFideId "4189302"]
[WhiteElo "2522"]
[BlackElo "2543"]
[Result "1/2-1/2"]
[Round "2"]
[TimeControl "600+2"]
[Date "2023.03.13"]
[WhiteClock "0:00:25"]
[BlackClock "0:00:12"]

1. e4 {[%clk 0:09:52]}  c5 {[%clk 0:10:00]} 2. Nf3 {[%clk 0:09:47]}  Nc6 {[%clk 0:10:01]} 3. Bb5 {[%clk 0:09:45]}  e6 {[%clk 0:10:02]} 4. O-O {[%clk 0:09:42]}  Nge7 {[%clk 0:10:02]} 5. c3 {[%clk 0:09:42]}  a6 {[%clk 0:10:01]} 6. Ba4 {[%clk 0:09:42]}  c4 {[%clk 0:09:56]} 7. d4 {[%clk 0:09:21]}  cxd3 {[%clk 0:09:55]} 8. c4 {[%clk 0:09:17]}  Ng6 {[%clk 0:09:40]} 9. Qxd3 {[%clk 0:09:14]}  Qc7 {[%clk 0:09:24]} 10. Nc3 {[%clk 0:08:59]}  Bc5 {[%clk 0:08:41]} 11. a3 {[%clk 0:08:30]}  b6 {[%clk 0:08:17]} 12. b4 {[%clk 0:08:29]}  Be7 {[%clk 0:08:18]} 13. Bb2 {[%clk 0:08:16]}  O-O {[%clk 0:08:14]} 14. Rac1 {[%clk 0:08:17]}  a5 {[%clk 0:06:11]} 15. bxa5 {[%clk 0:05:10]}  Rxa5 {[%clk 0:06:00]} 16. Nb5 {[%clk 0:05:11]}  Qb8 {[%clk 0:05:53]} 17. Bc2 {[%clk 0:05:02]}  d6 {[%clk 0:04:56]} 18. Rfd1 {[%clk 0:04:22]}  Nce5 {[%clk 0:04:50]} 19. Nxe5 {[%clk 0:04:17]}  dxe5 {[%clk 0:04:47]} 20. g3 {[%clk 0:04:08]}  Ra8 {[%clk 0:04:30]} 21. h4 {[%clk 0:03:48]}  Bc5 {[%clk 0:04:23]} 22. h5 {[%clk 0:03:36]}  Ne7 {[%clk 0:04:24]} 23. h6 {[%clk 0:03:33]}  Ba6 {[%clk 0:03:39]} 24. hxg7 {[%clk 0:03:29]}  Kxg7 {[%clk 0:03:40]} 25. Qf3 {[%clk 0:03:14]}  Bxb5 {[%clk 0:03:29]} 26. cxb5 {[%clk 0:03:15]}  Ng6 {[%clk 0:02:24]} 27. Rd7 {[%clk 0:03:11]}  Ra7 {[%clk 0:02:21]} 28. Rcd1 {[%clk 0:03:11]}  Rxd7 {[%clk 0:02:18]} 29. Rxd7 {[%clk 0:03:11]}  Qc8 {[%clk 0:02:19]} 30. Qd3 {[%clk 0:03:00]}  Bd4 {[%clk 0:01:41]} 31. Rxd4 {[%clk 0:02:27]}  exd4 {[%clk 0:01:41]} 32. Bxd4+ {[%clk 0:02:28]}  Kg8 {[%clk 0:01:42]} 33. Bxb6 {[%clk 0:02:28]}  Ne5 {[%clk 0:01:42]} 34. Qe2 {[%clk 0:02:25]}  Qc3 {[%clk 0:01:41]} 35. Be3 {[%clk 0:02:08]}  Rc8 {[%clk 0:01:27]} 36. Bd1 {[%clk 0:02:08]}  Qxa3 {[%clk 0:01:13]} 37. b6 {[%clk 0:01:52]}  Qb4 {[%clk 0:01:13]} 38. Bf4 {[%clk 0:01:43]}  Rc5 {[%clk 0:00:43]} 39. Kg2 {[%clk 0:01:35]}  Qb1 {[%clk 0:00:08]} 40. Ba4 {[%clk 0:01:18]}  Ra5 {[%clk 0:00:06]} 41. Qe3 {[%clk 0:00:16]}  Rxa4 {[%clk 0:00:06]} 42. Bxe5 {[%clk 0:00:17]}  f6 {[%clk 0:00:05]} 43. Bxf6 {[%clk 0:00:15]}  Qxe4+ {[%clk 0:00:05]} 44. Qxe4 {[%clk 0:00:16]}  Rxe4 {[%clk 0:00:07]} 45. Bd8 {[%clk 0:00:16]}  Rb4 {[%clk 0:00:08]} 46. Bc7 {[%clk 0:00:18]}  Kf7 {[%clk 0:00:08]} 47. Kf3 {[%clk 0:00:19]}  h5 {[%clk 0:00:09]} 48. Ke3 {[%clk 0:00:20]}  e5 {[%clk 0:00:07]} 49. Kd3 {[%clk 0:00:20]}  Ke6 {[%clk 0:00:08]} 50. Kc3 {[%clk 0:00:21]}  Rb1 {[%clk 0:00:08]} 51. Kc4 {[%clk 0:00:22]}  Rb2 {[%clk 0:00:08]} 52. Kc5 {[%clk 0:00:21]}  Kd7 {[%clk 0:00:09]} 53. Kd5 {[%clk 0:00:21]}  Rxf2 {[%clk 0:00:09]} 54. Bxe5 {[%clk 0:00:22]}  Kc8 {[%clk 0:00:07]} 55. Ke4 {[%clk 0:00:21]}  Kb7 {[%clk 0:00:07]} 56. Bc7 {[%clk 0:00:23]}  Rf7 {[%clk 0:00:07]} 57. Ke3 {[%clk 0:00:23]}  Rh7 {[%clk 0:00:07]} 58. Kf4 {[%clk 0:00:23]}  h4 {[%clk 0:00:08]} 59. gxh4 {[%clk 0:00:24]}  Rxh4+ {[%clk 0:00:10]} 60. Kg3 {[%clk 0:00:24]}  Rb4 {[%clk 0:00:11]} 61. Kf3 {[%clk 0:00:23]}  Rxb6 {[%clk 0:00:12]} 62. Bxb6 {[%clk 0:00:25]} 1/2-1/2


[Site "Internet"]

[Event "Chessable Masters - Torneo preliminare"]
[White "Sattarov, Bobir"]
[Black "Golubev, Mikhail"]
[WhiteFideId "14203081"]
[BlackFideId "14100983"]
[WhiteElo "2333"]
[BlackElo "2361"]
[Result "0-1"]
[Round "2"]
[TimeControl "600+2"]
[Date "2023.03.13"]
[WhiteClock "0:00:07"]
[BlackClock "0:00:19"]

1. e4 {[%clk 0:10:01]}  c5 {[%clk 0:09:56]} 2. Nf3 {[%clk 0:10:02]}  d6 {[%clk 0:09:57]} 3. d4 {[%clk 0:10:03]}  cxd4 {[%clk 0:09:58]} 4. Nxd4 {[%clk 0:10:05]}  Nf6 {[%clk 0:09:59]} 5. f3 {[%clk 0:10:07]}  Nc6 {[%clk 0:09:57]} 6. Nc3 {[%clk 0:10:07]}  e5 {[%clk 0:09:47]} 7. Nb3 {[%clk 0:10:07]}  Be7 {[%clk 0:09:47]} 8. Be3 {[%clk 0:10:07]}  O-O {[%clk 0:09:45]} 9. Qd2 {[%clk 0:10:07]}  a5 {[%clk 0:09:39]} 10. Bb5 {[%clk 0:10:07]}  Be6 {[%clk 0:09:38]} 11. O-O-O {[%clk 0:10:00]}  Nb4 {[%clk 0:09:38]} 12. a3 {[%clk 0:09:44]}  Qc7 {[%clk 0:09:31]} 13. Kb1 {[%clk 0:09:18]}  d5 {[%clk 0:08:53]} 14. axb4 {[%clk 0:08:19]}  d4 {[%clk 0:05:43]} 15. Bxd4 {[%clk 0:05:30]}  exd4 {[%clk 0:04:47]} 16. Nxd4 {[%clk 0:04:57]}  axb4 {[%clk 0:04:22]} 17. Na4 {[%clk 0:04:57]}  Ra5 {[%clk 0:01:36]} 18. b3 {[%clk 0:04:26]}  Rfa8 {[%clk 0:01:37]} 19. Qe2 {[%clk 0:03:51]}  Bd7 {[%clk 0:01:06]} 20. Bxd7 {[%clk 0:03:06]}  Qxd7 {[%clk 0:01:06]} 21. Nf5 {[%clk 0:00:28]}  Rxa4 {[%clk 0:01:03]} 22. Nxe7+ {[%clk 0:00:19]}  Kf8 {[%clk 0:01:04]} 23. bxa4 {[%clk 0:00:07]}  Qxa4 {[%clk 0:01:01]} 24. Rd8+ {[%clk 0:00:02]}  Rxd8 {[%clk 0:01:01]} 25. Qc4 {[%clk 0:00:02]}  Ra8 {[%clk 0:00:35]} 26. Kc1 {[%clk 0:00:03]}  Qa1+ {[%clk 0:00:28]} 27. Kd2 {[%clk 0:00:05]}  Qxh1 {[%clk 0:00:29]} 28. Qc5 {[%clk 0:00:03]}  Qxg2+ {[%clk 0:00:23]} 29. Kc1 {[%clk 0:00:04]}  Qh1+ {[%clk 0:00:19]} 30. Kd2 {[%clk 0:00:04]}  Qxh2+ {[%clk 0:00:18]} 31. Kc1 {[%clk 0:00:04]}  Qh1+ {[%clk 0:00:18]} 32. Kd2 {[%clk 0:00:05]}  Qg2+ {[%clk 0:00:18]} 33. Kc1 {[%clk 0:00:06]}  Qf1+ {[%clk 0:00:18]} 34. Kd2 {[%clk 0:00:06]}  Rd8+ {[%clk 0:00:17]} 35. Nd5+ {[%clk 0:00:07]}  Kg8 {[%clk 0:00:18]} 36. Qe7 {[%clk 0:00:08]}  Qf2+ {[%clk 0:00:17]} 37. Kc1 {[%clk 0:00:08]}  Rf8 {[%clk 0:00:17]} 38. Nxf6+ {[%clk 0:00:04]}  gxf6 {[%clk 0:00:18]} 39. Qxf6 {[%clk 0:00:06]}  Qg1+ {[%clk 0:00:18]} 40. Kb2 {[%clk 0:00:07]}  Qg7 {[%clk 0:00:19]} 0-1


[Site "Internet"]

[Event "Chessable Masters - Torneo preliminare"]
[White "Cuenca Jimenez, Jose Fernando"]
[Black "Shimanov, Aleksandr"]
[WhiteFideId "2255570"]
[BlackFideId "4198603"]
[WhiteElo "2455"]
[BlackElo "2610"]
[Result "0-1"]
[Round "2"]
[TimeControl "600+2"]
[Date "2023.03.13"]
[WhiteClock "0:00:03"]
[BlackClock "0:00:41"]

1. d4 {[%clk 0:10:01]}  Nf6 {[%clk 0:09:56]} 2. c4 {[%clk 0:10:01]}  d6 {[%clk 0:09:57]} 3. Nf3 {[%clk 0:09:57]}  g6 {[%clk 0:09:58]} 4. Nc3 {[%clk 0:09:58]}  Bg7 {[%clk 0:10:00]} 5. e4 {[%clk 0:10:00]}  O-O {[%clk 0:10:01]} 6. Be2 {[%clk 0:10:01]}  e5 {[%clk 0:10:03]} 7. d5 {[%clk 0:10:00]}  h6 {[%clk 0:09:52]} 8. h3 {[%clk 0:08:58]}  Na6 {[%clk 0:09:41]} 9. Be3 {[%clk 0:08:55]}  Nc5 {[%clk 0:09:27]} 10. Nd2 {[%clk 0:08:49]}  a5 {[%clk 0:09:15]} 11. g4 {[%clk 0:08:50]}  Nh7 {[%clk 0:09:16]} 12. Qc2 {[%clk 0:08:33]}  Bd7 {[%clk 0:08:06]} 13. h4 {[%clk 0:08:25]}  Qe7 {[%clk 0:07:00]} 14. h5 {[%clk 0:08:10]}  Ng5 {[%clk 0:06:59]} 15. O-O-O {[%clk 0:08:01]}  a4 {[%clk 0:06:59]} 16. Kb1 {[%clk 0:07:58]}  f5 {[%clk 0:06:25]} 17. hxg6 {[%clk 0:06:50]}  fxg4 {[%clk 0:05:21]} 18. Rh5 {[%clk 0:04:19]}  Nh3 {[%clk 0:05:02]} 19. f3 {[%clk 0:03:04]}  g3 {[%clk 0:04:40]} 20. Bf1 {[%clk 0:02:13]}  Nf4 {[%clk 0:04:39]} 21. Bxf4 {[%clk 0:02:15]}  exf4 {[%clk 0:04:39]} 22. Bh3 {[%clk 0:02:10]}  a3 {[%clk 0:04:27]} 23. Bxd7 {[%clk 0:01:53]}  Nxd7 {[%clk 0:04:23]} 24. Nb5 {[%clk 0:01:35]}  Ne5 {[%clk 0:02:45]} 25. Nxa3 {[%clk 0:01:30]}  Rxa3 {[%clk 0:02:40]} 26. bxa3 {[%clk 0:01:29]}  Ra8 {[%clk 0:02:40]} 27. Nb3 {[%clk 0:00:55]}  Nxf3 {[%clk 0:02:22]} 28. Rf5 {[%clk 0:00:50]}  Rxa3 {[%clk 0:01:30]} 29. Rxf4 {[%clk 0:00:42]}  Ng5 {[%clk 0:01:31]} 30. Rg4 {[%clk 0:00:08]}  Qe5 {[%clk 0:01:30]} 31. Re1 {[%clk 0:00:04]}  Nf3 {[%clk 0:00:46]} 32. Re3 {[%clk 0:00:03]}  Rxb3+ {[%clk 0:00:44]} 33. Qxb3 {[%clk 0:00:03]}  Nd2+ {[%clk 0:00:46]} 34. Kc2 {[%clk 0:00:05]}  Nxb3 {[%clk 0:00:47]} 35. Rxb3 {[%clk 0:00:03]}  g2 {[%clk 0:00:41]} 36. Rb1 {[%clk 0:00:03]}  h5 {[%clk 0:00:41]} 0-1


[Site "Internet"]

[Event "Chessable Masters - Torneo preliminare"]
[White "Piorun, Kacper"]
[Black "Svane, Rasmus"]
[WhiteFideId "1130420"]
[BlackFideId "4657101"]
[WhiteElo "2491"]
[BlackElo "2621"]
[Result "1/2-1/2"]
[Round "2"]
[TimeControl "600+2"]
[Date "2023.03.13"]
[WhiteClock "0:00:16"]
[BlackClock "0:01:13"]

1. e4 {[%clk 0:10:01]}  e5 {[%clk 0:09:59]} 2. Nf3 {[%clk 0:10:02]}  Nc6 {[%clk 0:10:01]} 3. Bb5 {[%clk 0:10:03]}  a6 {[%clk 0:10:02]} 4. Ba4 {[%clk 0:10:04]}  Nf6 {[%clk 0:10:03]} 5. O-O {[%clk 0:10:05]}  Be7 {[%clk 0:10:04]} 6. d3 {[%clk 0:09:54]}  b5 {[%clk 0:10:04]} 7. Bb3 {[%clk 0:09:56]}  d6 {[%clk 0:10:06]} 8. Bd2 {[%clk 0:09:51]}  Bg4 {[%clk 0:09:59]} 9. h3 {[%clk 0:09:52]}  Bxf3 {[%clk 0:09:54]} 10. Qxf3 {[%clk 0:09:53]}  Nd4 {[%clk 0:09:55]} 11. Qd1 {[%clk 0:09:52]}  O-O {[%clk 0:09:40]} 12. Re1 {[%clk 0:09:16]}  Re8 {[%clk 0:09:08]} 13. Nc3 {[%clk 0:08:56]}  a5 {[%clk 0:08:38]} 14. a4 {[%clk 0:08:56]}  b4 {[%clk 0:08:29]} 15. Ne2 {[%clk 0:08:50]}  Nxb3 {[%clk 0:08:29]} 16. cxb3 {[%clk 0:08:51]}  c5 {[%clk 0:07:54]} 17. Ng3 {[%clk 0:08:48]}  Nd7 {[%clk 0:07:49]} 18. Nf5 {[%clk 0:08:31]}  g6 {[%clk 0:07:44]} 19. Ne3 {[%clk 0:08:22]}  Bg5 {[%clk 0:07:42]} 20. Nc4 {[%clk 0:08:19]}  Bxd2 {[%clk 0:06:28]} 21. Qxd2 {[%clk 0:08:21]}  Nf8 {[%clk 0:06:30]} 22. f4 {[%clk 0:08:21]}  exf4 {[%clk 0:06:27]} 23. Qxf4 {[%clk 0:08:20]}  Ne6 {[%clk 0:06:15]} 24. Qxd6 {[%clk 0:07:07]}  Nd4 {[%clk 0:06:15]} 25. Rf1 {[%clk 0:06:44]}  Nxb3 {[%clk 0:06:01]} 26. Rae1 {[%clk 0:06:41]}  Qxd6 {[%clk 0:05:32]} 27. Nxd6 {[%clk 0:06:43]}  Re7 {[%clk 0:05:34]} 28. e5 {[%clk 0:05:50]}  Rd8 {[%clk 0:05:23]} 29. Rf6 {[%clk 0:05:29]}  Rdd7 {[%clk 0:04:47]} 30. g4 {[%clk 0:04:32]}  Kg7 {[%clk 0:04:21]} 31. g5 {[%clk 0:04:30]}  Nd4 {[%clk 0:04:15]} 32. Kf2 {[%clk 0:04:27]}  Nc6 {[%clk 0:03:31]} 33. Nc4 {[%clk 0:03:51]}  Re6 {[%clk 0:03:31]} 34. Re3 {[%clk 0:03:40]}  h6 {[%clk 0:03:29]} 35. h4 {[%clk 0:02:26]}  Nd4 {[%clk 0:03:28]} 36. Nd6 {[%clk 0:02:21]}  hxg5 {[%clk 0:03:12]} 37. hxg5 {[%clk 0:02:20]}  Nc6 {[%clk 0:02:52]} 38. Ke2 {[%clk 0:00:56]}  Kf8 {[%clk 0:01:44]} 39. Rxe6 {[%clk 0:00:43]}  fxe6 {[%clk 0:01:46]} 40. Ne4 {[%clk 0:00:45]}  Ke7 {[%clk 0:01:12]} 41. Nxc5 {[%clk 0:00:27]}  Rd5 {[%clk 0:01:13]} 42. Ne4 {[%clk 0:00:16]} 1/2-1/2


[Site "Internet"]

[Event "Chessable Masters - Torneo preliminare"]
[White "Agrest, Evgenij"]
[Black "Sargissian, Gabriel"]
[WhiteFideId "1705024"]
[BlackFideId "13300881"]
[WhiteElo "2576"]
[BlackElo "2628"]
[Result "0-1"]
[Round "2"]
[TimeControl "600+2"]
[Date "2023.03.13"]
[WhiteClock "0:00:13"]
[BlackClock "0:01:42"]

1. Nf3 {[%clk 0:09:59]}  d5 {[%clk 0:09:59]} 2. b3 {[%clk 0:09:58]}  c5 {[%clk 0:09:57]} 3. e3 {[%clk 0:09:57]}  Nc6 {[%clk 0:09:56]} 4. Bb2 {[%clk 0:09:57]}  e6 {[%clk 0:09:54]} 5. Bb5 {[%clk 0:09:42]}  Ne7 {[%clk 0:09:51]} 6. O-O {[%clk 0:09:33]}  a6 {[%clk 0:09:51]} 7. Be2 {[%clk 0:09:34]}  Nf5 {[%clk 0:09:18]} 8. d4 {[%clk 0:08:15]}  cxd4 {[%clk 0:09:09]} 9. exd4 {[%clk 0:08:14]}  Bd6 {[%clk 0:09:08]} 10. c4 {[%clk 0:08:09]}  O-O {[%clk 0:09:08]} 11. g3 {[%clk 0:07:44]}  dxc4 {[%clk 0:09:02]} 12. bxc4 {[%clk 0:07:42]}  b5 {[%clk 0:09:04]} 13. d5 {[%clk 0:07:03]}  Na5 {[%clk 0:08:51]} 14. cxb5 {[%clk 0:06:49]}  axb5 {[%clk 0:08:36]} 15. Bxb5 {[%clk 0:06:36]}  exd5 {[%clk 0:08:20]} 16. Nbd2 {[%clk 0:05:20]}  Be6 {[%clk 0:08:13]} 17. Nd4 {[%clk 0:04:53]}  Nxd4 {[%clk 0:07:57]} 18. Bxd4 {[%clk 0:04:51]}  Nc4 {[%clk 0:07:32]} 19. Nxc4 {[%clk 0:04:44]}  dxc4 {[%clk 0:07:33]} 20. a4 {[%clk 0:04:45]}  Qc7 {[%clk 0:07:26]} 21. Rc1 {[%clk 0:04:28]}  Rfd8 {[%clk 0:07:18]} 22. Qf3 {[%clk 0:04:20]}  Rac8 {[%clk 0:07:02]} 23. Qe3 {[%clk 0:04:06]}  Bc5 {[%clk 0:06:37]} 24. Bxc5 {[%clk 0:03:44]}  Qxc5 {[%clk 0:06:38]} 25. Qxc5 {[%clk 0:03:44]}  Rxc5 {[%clk 0:06:40]} 26. Rc3 {[%clk 0:03:45]}  Kf8 {[%clk 0:06:29]} 27. Rfc1 {[%clk 0:03:43]}  Rdc8 {[%clk 0:06:26]} 28. f3 {[%clk 0:03:40]}  Ke7 {[%clk 0:06:24]} 29. Kf2 {[%clk 0:03:40]}  g5 {[%clk 0:05:53]} 30. Rd1 {[%clk 0:03:34]}  h5 {[%clk 0:05:47]} 31. Rd4 {[%clk 0:03:32]}  Re5 {[%clk 0:04:59]} 32. f4 {[%clk 0:03:25]}  gxf4 {[%clk 0:04:58]} 33. gxf4 {[%clk 0:03:24]}  Rec5 {[%clk 0:04:58]} 34. Ke3 {[%clk 0:03:16]}  h4 {[%clk 0:04:59]} 35. Kd2 {[%clk 0:02:56]}  h3 {[%clk 0:04:57]} 36. Re3 {[%clk 0:02:50]}  c3+ {[%clk 0:04:52]} 37. Kc1 {[%clk 0:02:49]}  c2 {[%clk 0:04:35]} 38. Rd2 {[%clk 0:02:43]}  Kf6 {[%clk 0:04:07]} 39. Ree2 {[%clk 0:02:38]}  Bf5 {[%clk 0:04:00]} 40. Rd6+ {[%clk 0:02:32]}  Kg7 {[%clk 0:04:00]} 41. Re3 {[%clk 0:02:30]}  Rc3 {[%clk 0:03:51]} 42. Rxc3 {[%clk 0:02:09]}  Rxc3 {[%clk 0:03:53]} 43. Bd7 {[%clk 0:02:08]}  Be4 {[%clk 0:03:45]} 44. Rd4 {[%clk 0:01:06]}  f5 {[%clk 0:03:43]} 45. a5 {[%clk 0:00:47]}  Ra3 {[%clk 0:03:06]} 46. Ra4 {[%clk 0:00:31]}  Rd3 {[%clk 0:02:25]} 47. Rxe4 {[%clk 0:00:29]}  fxe4 {[%clk 0:02:23]} 48. Bf5 {[%clk 0:00:29]}  Rd4 {[%clk 0:02:07]} 49. a6 {[%clk 0:00:24]}  e3 {[%clk 0:01:57]} 50. Bg4 {[%clk 0:00:23]}  Rxf4 {[%clk 0:01:51]} 51. a7 {[%clk 0:00:19]}  Ra4 {[%clk 0:01:52]} 52. Kxc2 {[%clk 0:00:15]}  Rxa7 {[%clk 0:01:52]} 53. Bxh3 {[%clk 0:00:15]}  Kf6 {[%clk 0:01:42]} 54. Kd3 {[%clk 0:00:13]}  Ke5 {[%clk 0:01:42]} 0-1


[Site "Internet"]

[Event "Chessable Masters - Torneo preliminare"]
[White "Malakhov, Vladimir"]
[Black "Sharapov, Evgeny"]
[WhiteFideId "4120787"]
[BlackFideId "14103133"]
[WhiteElo "2666"]
[BlackElo "2337"]
[Result "1-0"]
[Round "2"]
[TimeControl "600+2"]
[Date "2023.03.13"]
[WhiteClock "0:02:35"]
[BlackClock "0:06:31"]

1. e4 {[%clk 0:10:01]}  c5 {[%clk 0:10:00]} 2. Nf3 {[%clk 0:10:01]}  d6 {[%clk 0:10:01]} 3. Bb5+ {[%clk 0:09:57]}  Nd7 {[%clk 0:10:02]} 4. d4 {[%clk 0:09:47]}  cxd4 {[%clk 0:10:02]} 5. Nxd4 {[%clk 0:09:47]}  Nf6 {[%clk 0:10:01]} 6. O-O {[%clk 0:09:47]}  a6 {[%clk 0:09:56]} 7. Bd3 {[%clk 0:09:45]}  e6 {[%clk 0:09:56]} 8. c4 {[%clk 0:09:45]}  Be7 {[%clk 0:09:57]} 9. Nc3 {[%clk 0:09:44]}  O-O {[%clk 0:09:58]} 10. Be3 {[%clk 0:09:12]}  Qc7 {[%clk 0:09:58]} 11. Rc1 {[%clk 0:09:12]}  b6 {[%clk 0:09:59]} 12. f3 {[%clk 0:09:11]}  Bb7 {[%clk 0:10:00]} 13. Qd2 {[%clk 0:09:12]}  Rac8 {[%clk 0:09:57]} 14. Rfd1 {[%clk 0:09:12]}  Qb8 {[%clk 0:09:55]} 15. Bf1 {[%clk 0:09:09]}  Bd8 {[%clk 0:09:51]} 16. Kh1 {[%clk 0:08:47]}  Bc7 {[%clk 0:09:51]} 17. h3 {[%clk 0:08:45]}  Rfe8 {[%clk 0:09:40]} 18. Qf2 {[%clk 0:08:28]}  Ne5 {[%clk 0:09:07]} 19. b4 {[%clk 0:08:03]}  h5 {[%clk 0:08:57]} 20. Nb3 {[%clk 0:07:48]}  Ba8 {[%clk 0:08:50]} 21. c5 {[%clk 0:06:50]}  b5 {[%clk 0:08:17]} 22. cxd6 {[%clk 0:06:47]}  Bxd6 {[%clk 0:08:13]} 23. Ba7 {[%clk 0:06:36]}  Qc7 {[%clk 0:08:08]} 24. Nxb5 {[%clk 0:06:27]}  axb5 {[%clk 0:07:47]} 25. Rxc7 {[%clk 0:06:25]}  Bxc7 {[%clk 0:07:47]} 26. Bxb5 {[%clk 0:06:11]}  Red8 {[%clk 0:07:48]} 27. Rc1 {[%clk 0:05:55]}  Bd6 {[%clk 0:07:33]} 28. Rxc8 {[%clk 0:05:48]}  Rxc8 {[%clk 0:07:33]} 29. Qd4 {[%clk 0:05:08]}  Bc7 {[%clk 0:07:22]} 30. Bb6 {[%clk 0:04:38]}  Bb8 {[%clk 0:07:15]} 31. a4 {[%clk 0:04:27]}  h4 {[%clk 0:07:12]} 32. a5 {[%clk 0:03:44]}  Nc6 {[%clk 0:07:11]} 33. Bxc6 {[%clk 0:03:31]}  Bxc6 {[%clk 0:07:12]} 34. Qc4 {[%clk 0:03:11]}  Bb7 {[%clk 0:07:08]} 35. Nc5 {[%clk 0:03:10]}  Nh5 {[%clk 0:07:04]} 36. a6 {[%clk 0:03:03]}  Ng3+ {[%clk 0:07:04]} 37. Kg1 {[%clk 0:03:01]}  Ba8 {[%clk 0:07:05]} 38. Qd3 {[%clk 0:02:53]}  Bf4 {[%clk 0:07:00]} 39. Kf2 {[%clk 0:02:46]}  Nh1+ {[%clk 0:06:56]} 40. Ke1 {[%clk 0:02:45]}  Bg3+ {[%clk 0:06:52]} 41. Kd2 {[%clk 0:02:44]}  Bf4+ {[%clk 0:06:52]} 42. Kc3 {[%clk 0:02:44]}  Be5+ {[%clk 0:06:51]} 43. Kb3 {[%clk 0:02:44]}  Ng3 {[%clk 0:06:40]} 44. Qd7 {[%clk 0:02:42]}  Rb8 {[%clk 0:06:34]} 45. Bc7 {[%clk 0:02:39]}  Bxc7 {[%clk 0:06:33]} 46. Qxc7 {[%clk 0:02:39]}  Re8 {[%clk 0:06:33]} 47. b5 {[%clk 0:02:37]}  Ne2 {[%clk 0:06:31]} 48. Kc4 {[%clk 0:02:35]} 1-0


[Site "Internet"]

[Event "Chessable Masters - Torneo preliminare"]
[White "Hambleton, Aman"]
[Black "Bachmann, Axel"]
[WhiteFideId "2606577"]
[BlackFideId "3700488"]
[WhiteElo "2447"]
[BlackElo "2618"]
[Result "0-1"]
[Round "2"]
[TimeControl "600+2"]
[Date "2023.03.13"]
[WhiteClock "0:00:05"]
[BlackClock "0:02:25"]

1. d4 {[%clk 0:10:01]}  Nf6 {[%clk 0:08:55]} 2. c4 {[%clk 0:10:01]}  e6 {[%clk 0:08:56]} 3. Nc3 {[%clk 0:10:02]}  Bb4 {[%clk 0:08:57]} 4. Qc2 {[%clk 0:10:03]}  d6 {[%clk 0:08:52]} 5. a3 {[%clk 0:09:26]}  Bxc3+ {[%clk 0:08:52]} 6. Qxc3 {[%clk 0:09:28]}  Nc6 {[%clk 0:08:47]} 7. Nf3 {[%clk 0:08:34]}  Qe7 {[%clk 0:08:29]} 8. b4 {[%clk 0:08:18]}  Ne4 {[%clk 0:07:51]} 9. Qc2 {[%clk 0:08:07]}  f5 {[%clk 0:07:48]} 10. e3 {[%clk 0:07:40]}  O-O {[%clk 0:07:15]} 11. Bd3 {[%clk 0:07:33]}  e5 {[%clk 0:07:16]} 12. b5 {[%clk 0:06:13]}  Na5 {[%clk 0:07:16]} 13. dxe5 {[%clk 0:03:32]}  dxe5 {[%clk 0:07:18]} 14. Bb2 {[%clk 0:02:46]}  Nxf2 {[%clk 0:06:59]} 15. Qxf2 {[%clk 0:01:01]}  e4 {[%clk 0:06:59]} 16. Be2 {[%clk 0:01:02]}  exf3 {[%clk 0:06:53]} 17. gxf3 {[%clk 0:01:04]}  Be6 {[%clk 0:06:44]} 18. Rg1 {[%clk 0:00:56]}  Rf7 {[%clk 0:06:44]} 19. Rc1 {[%clk 0:00:51]}  Rd8 {[%clk 0:06:36]} 20. f4 {[%clk 0:00:32]}  Nb3 {[%clk 0:06:25]} 21. Rc2 {[%clk 0:00:06]}  Nc5 {[%clk 0:06:24]} 22. Qg2 {[%clk 0:00:02]}  Nd3+ {[%clk 0:05:53]} 23. Bxd3 {[%clk 0:00:03]}  Rxd3 {[%clk 0:05:54]} 24. Qe2 {[%clk 0:00:02]}  Bxc4 {[%clk 0:05:45]} 25. Be5 {[%clk 0:00:03]}  Bxb5 {[%clk 0:03:36]} 26. Rxc7 {[%clk 0:00:04]}  Qh4+ {[%clk 0:03:37]} 27. Rg3 {[%clk 0:00:04]}  Rxc7 {[%clk 0:03:32]} 28. Bxc7 {[%clk 0:00:05]}  Rb3 {[%clk 0:03:11]} 29. Qc2 {[%clk 0:00:06]}  Rxe3+ {[%clk 0:03:09]} 30. Kd1 {[%clk 0:00:03]}  Qh5+ {[%clk 0:02:22]} 31. Kc1 {[%clk 0:00:02]}  Re1+ {[%clk 0:02:23]} 32. Kb2 {[%clk 0:00:02]}  Re2 {[%clk 0:02:24]} 33. Be5 {[%clk 0:00:03]}  Rxc2+ {[%clk 0:02:25]} 34. Kxc2 {[%clk 0:00:05]}  Qxh2+ {[%clk 0:02:25]} 0-1


[Site "Internet"]

[Event "Chessable Masters - Torneo preliminare"]
[White "Kaufman, Lawrence"]
[Black "Ju, Wenjun"]
[WhiteFideId "2000555"]
[BlackFideId "8603006"]
[WhiteElo "2237"]
[BlackElo "2598"]
[Result "0-1"]
[Round "2"]
[TimeControl "600+2"]
[Date "2023.03.13"]
[WhiteClock "0:00:03"]
[BlackClock "0:00:12"]

1. e4 {[%clk 0:09:52]}  e5 {[%clk 0:09:52]} 2. Nf3 {[%clk 0:09:51]}  Nc6 {[%clk 0:09:53]} 3. Bc4 {[%clk 0:09:49]}  Bc5 {[%clk 0:09:53]} 4. O-O {[%clk 0:09:47]}  Nf6 {[%clk 0:09:51]} 5. d3 {[%clk 0:09:47]}  d6 {[%clk 0:09:53]} 6. c3 {[%clk 0:09:45]}  a6 {[%clk 0:09:49]} 7. a4 {[%clk 0:09:44]}  O-O {[%clk 0:09:49]} 8. Re1 {[%clk 0:09:27]}  Be6 {[%clk 0:09:45]} 9. Bxe6 {[%clk 0:09:07]}  fxe6 {[%clk 0:09:47]} 10. b4 {[%clk 0:08:35]}  Ba7 {[%clk 0:09:48]} 11. Be3 {[%clk 0:08:20]}  Bxe3 {[%clk 0:09:40]} 12. Rxe3 {[%clk 0:08:17]}  Qe8 {[%clk 0:08:12]} 13. Nbd2 {[%clk 0:08:11]}  Qg6 {[%clk 0:07:30]} 14. Nf1 {[%clk 0:07:36]}  Rf7 {[%clk 0:06:47]} 15. Ng3 {[%clk 0:06:59]}  Raf8 {[%clk 0:06:40]} 16. h3 {[%clk 0:06:49]}  Nd7 {[%clk 0:05:50]} 17. b5 {[%clk 0:06:27]}  Ne7 {[%clk 0:05:28]} 18. bxa6 {[%clk 0:06:06]}  bxa6 {[%clk 0:05:30]} 19. Rb1 {[%clk 0:06:06]}  d5 {[%clk 0:04:48]} 20. Rb7 {[%clk 0:04:50]}  Rc8 {[%clk 0:02:49]} 21. a5 {[%clk 0:03:21]}  h5 {[%clk 0:02:00]} 22. Rb2 {[%clk 0:02:36]}  Qh6 {[%clk 0:01:53]} 23. Qd2 {[%clk 0:02:08]}  Nc6 {[%clk 0:01:05]} 24. Re1 {[%clk 0:01:44]}  Qxd2 {[%clk 0:00:54]} 25. Rxd2 {[%clk 0:01:42]}  g6 {[%clk 0:00:49]} 26. Ng5 {[%clk 0:01:29]}  Rf6 {[%clk 0:00:46]} 27. Nxe6 {[%clk 0:01:13]}  dxe4 {[%clk 0:00:27]} 28. dxe4 {[%clk 0:01:09]}  Rxe6 {[%clk 0:00:22]} 29. Rxd7 {[%clk 0:01:08]}  Nxa5 {[%clk 0:00:24]} 30. Nf1 {[%clk 0:00:40]}  Nc4 {[%clk 0:00:23]} 31. Ne3 {[%clk 0:00:36]}  Nb6 {[%clk 0:00:23]} 32. Rd2 {[%clk 0:00:30]}  a5 {[%clk 0:00:23]} 33. Ra2 {[%clk 0:00:28]}  Ra8 {[%clk 0:00:22]} 34. Nd5 {[%clk 0:00:16]}  Nxd5 {[%clk 0:00:10]} 35. exd5 {[%clk 0:00:16]}  Rb6 {[%clk 0:00:10]} 36. Rxe5 {[%clk 0:00:14]}  a4 {[%clk 0:00:11]} 37. Re7 {[%clk 0:00:12]}  a3 {[%clk 0:00:09]} 38. Rxc7 {[%clk 0:00:11]}  Rb2 {[%clk 0:00:10]} 39. Ra1 {[%clk 0:00:07]}  a2 {[%clk 0:00:11]} 40. Kh2 {[%clk 0:00:03]}  Rb1 {[%clk 0:00:11]} 41. Rxa2 {[%clk 0:00:02]}  Rxa2 {[%clk 0:00:13]} 42. d6 {[%clk 0:00:03]}  Rd2 {[%clk 0:00:12]} 43. d7 {[%clk 0:00:03]}  Rbd1 {[%clk 0:00:12]} 0-1


[Site "Internet"]